Cogmind - Beta 10.2 @@@ ROGUE MODE // 2020.11.30 @ 12:37:42 // Halloween2020/ForbiddenLore Player: CrossedViper Result: Destroyed by as-59159 with Assembled Heavy Rifle Performance ------------- Evolutions (0) 0 Regions Visited (2) 400 Robots Destroyed (14) 70 Value Destroyed (295) 295 Prototype IDs (0) 0 Alien Tech Used (0) 0 Bonus (0) 0 TOTAL SCORE: 765 Bonus ------- None Cogmind --------- Core Integrity 0/250 Matter 112/300 Energy 63/125 System Corruption 1% Temperature Cool (10) Movement Treading (200) Ox2 Location -10/Mines Parts ------- > --- POWER (1) -------- Light Ion Engine > --- PROPULSION (2) --- Light Treads Aluminum Leg > --- UTILITY (2) ------ Large Storage Unit Large Storage Unit > --- WEAPON (2) ------- Light EM Pulse Cannon Light Cannon > --- INVENTORY (16) --- Aluminum Leg Large Storage Unit Light EM Pulse Cannon Light EM Pulse Cannon Light EM Pulse Cannon Assault Rifle Assault Rifle Grenade Launcher Rocket Launcher Peak State ------------ > --- POWER ------------ Light Ion Engine > --- PROPULSION ------- Light Treads Aluminum Leg > --- UTILITY ---------- Large Storage Unit Large Storage Unit > --- WEAPON ----------- Light EM Pulse Cannon Light Cannon > --- INVENTORY -------- Aluminum Leg Large Storage Unit Light EM Pulse Cannon Light EM Pulse Cannon Light EM Pulse Cannon Assault Rifle Assault Rifle Grenade Launcher Rocket Launcher [Rating: 9] Favorites ----------- Power Ion Engine Engine Ion Engine Propulsion Aluminum Leg Treads Light Treads Leg Aluminum Leg Utility Large Storage Unit Storage Large Storage Unit Weapon Assault Rifle Energy Gun Small Laser Energy Cannon Light EM Pulse Cannon Ballistic Gun Assault Rifle Ballistic Cannon Light Cannon Launcher Grenade Launcher Build | -11 -10 -10 ------- Run | Scr Mat Min Slots Evolved . | . . . Power . | . . . Propulsion . | . . . Utility . | . . . Weapon . | . . . Parts Attached 13 | . 7 6 Power 1 | . . 1 Engine 1 | . . 1 Core . | . . . Reactor . | . . . Propulsion 3 | . . 3 Treads 2 | . . 2 Leg 1 | . . 1 Wheel . | . . . Hover . | . . . Flight . | . . . Utility 2 | . 2 . Device . | . . . Storage 2 | . 2 . Processor . | . . . Hackware . | . . . Protection . | . . . Artifact . | . . . Weapon 7 | . 5 2 Energy Gun . | . . . Energy Cannon 1 | . . 1 Ballistic Gun 2 | . 2 . Ballistic Cannon 1 | . 1 . Launcher 3 | . 2 1 Special Weapon . | . . . Impact Weapon . | . . . Slashing Weapon . | . . . Piercing Weapon . | . . . Special Melee Weapon . | . . . Unidentified Prototypes . | . . . Parts Lost 4 | . . 4 Power 1 | . . 1 Propulsion 2 | . . 2 Utility . | . . . Weapon 1 | . . 1 Highest Loss Streak 4 | . . 4 Average Slot Usage (%) 99 | . 99 99 Engine 14 | . 14 14 Leg 27 | . 28 27 Storage 27 | . 27 28 Energy Gun 1 | . 1 . Ballistic Gun 13 | . 14 12 Ballistic Cannon 12 | . 12 14 Naked Turns . | . . . Heaviest Build 42 | 12 42 42 Greatest Support 20 | 20 20 20 Greatest Overweight (x) 2 | . 2 2 Average Overweight (x) 1 | . 1 2 Largest Inventory Capacity 16 | . 16 16 Average Capacity 15 | . 15 16 Most Carried 14 | . 13 14 Average Carried 10 | . 10 13 Final Capacity 16 | 6 16 16 Final Carried 13 | 6 13 9 Class Distribution -------------------- 100% | Mutant Dominant Class ---------------- Mutant | -10/Materials Mutant | -10/Mines Resources | -11 -10 -10 ----------- Run | Scr Mat Min Matter Collected 384 | 200 184 . Remotely . | . . . Salvage Created 318 | . 291 27 Parts 28 | . 28 . Haulers Intercepted 1 | . 1 . Recyclers Shooed . | . . . Parts Field Recycled . | . . . Retrieved Matter . | . . . Parts Self-Destructed . | . . . Prevented . | . . . Kills | -11 -10 -10 ------- Run | Scr Mat Min Combat Hostiles Destroyed 20 | . 12 8 Guns 5 | . 4 1 Cannons 6 | . 5 1 AOE 9 | . 3 6 Classes Destroyed 5 | . 4 1 Hauler 1 | . 1 . Watcher 1 | . 1 . Swarmer 6 | . 6 . Grunt 6 | . 6 . Assembled 8 | . . 8 Best Kill Streak 8 | . 3 8 Combat Bots Only 8 | . 3 8 Max Kills in Single Turn 3 | . 3 2 Gunslinging . | . . . Exploded 3 | . 3 2 Melee . | . . . Uniques/NPCs Destroyed . | . . . Combat | -11 -10 -10 -------- Run | Scr Mat Min Damage Taken 885 | . 239 646 Core 252 | . 24 228 Absorbed by Shields . | . . . Core Remaining (%) 100 | 100 . . Volleys Fired 37 | . 26 11 Largest 2 | . 2 2 Hottest 91 | . 60 91 Shots Fired 64 | . 50 14 Gun 31 | . 29 2 Cannon 23 | . 19 4 Launcher 10 | . 2 8 Special . | . . . Kinetic 48 | . 43 5 Thermal 5 | . 5 . Explosive 10 | . 2 8 Electromagnetic 1 | . . 1 Robot Hit Streak 9 | . 9 3 Robot Miss Streak 3 | . 3 1 Penetration Max . | . . . Secondary Targets . | . . . Shots Hit Robots 35 | . 30 5 Core Hits 36 | . 20 16 Critical Hits . | . . . Critical Kills . | . . . Critical Parts Destroyed . | . . . Melee Attacks . | . . . Impact . | . . . Slashing . | . . . Piercing . | . . . Sneak Attacks . | . . . Combat Hostiles . | . . . Follow-up Attacks . | . . . Damage Inflicted 1054 | . 578 476 Guns 312 | . 282 30 Cannons 214 | . 178 36 Explosions 524 | . 118 406 Melee . | . . . Ramming 4 | . . 4 Kinetic 451 | . 405 46 Thermal 55 | . 55 . Explosive 524 | . 118 406 Electromagnetic 20 | . . 20 Impact . | . . . Slashing . | . . . Piercing . | . . . Highest Corruption 1 | . 1 1 Average Corruption 1 | . 1 1 Corruption Purged . | . . . Effects 6 | . 4 2 Energy Discharges 1 | . . 1 Data Loss (minor) 3 | . 3 . Targeting Errors 2 | . 1 1 Overload Shots . | . . . Overflow Damage 21 | . . 21 Projectiles . | . . . Explosions 21 | . . 21 Melee . | . . . Knockbacks 1 | . 1 . Impact . | . . . Kinetic 1 | . 1 . Secondary . | . . . Self-Inflicted Damage 52 | . . 52 Shots 2 | . . 2 Rammed 1 | . . 1 Targets Rammed 1 | . . 1 Kicked . | . . . Crushed . | . . . Highest Temperature 30 | . 30 10 Average Temperature 9 | . 9 10 Received Heat Transfer 116 | . 96 20 Siege Activations . | . . . Robots Corrupted . | . . . Combat Hostiles . | . . . Parts Fried . | . . . Impact Corruptions . | . . . Robots Melted . | . . . Combat Hostiles . | . . . Parts Melted . | . . . Heat Transferred 125 | . 125 . Parts Sabotaged . | . . . Parts Stolen . | . . . Parts Stripped . | . . . Power Chain Reactions . | . . . Missiles Intercepted . | . . . Alert | -11 -10 -10 ------- Run | Scr Mat Min Peak Influence 240 | . 240 . Initial . | . . . Average 47 | . 62 . Maximum Alert Level 1 | . 1 . Low Security (%) 97 | . 96 100 Level 1 2 | . 3 . Level 2 . | . . . Level 3 . | . . . Level 4 . | . . . Level 5 . | . . . High Security . | . . . Max Security . | . . . Squads Dispatched 2 | . 2 . Investigation . | . . . Extermination . | . . . Reinforcement 2 | . 2 . Assault . | . . . Garrison . | . . . Intercept . | . . . Construction Impeded . | . . . Haulers Reinforced . | . . . Stealth | -11 -10 -10 --------- Run | Scr Mat Min Distress Signals 1 | . 1 . Communications Jammed . | . . . Distress Signals . | . . . Times Spotted 40 | . 23 17 Peak Tracking Total 8 | . 4 8 Tactical Retreats 1 | . . 1 Traps | -11 -10 -10 ------- Run | Scr Mat Min Traps Triggered 1 | . 1 . Indirectly . | . . . Trap Hack Attempts . | . . . Triggered . | . . . Disarmed . | . . . Reprogrammed . | . . . Reused . | . . . Traps Extracted . | . . . Installed . | . . . Triggered . | . . . Machines | -11 -10 -10 ---------- Run | Scr Mat Min Machines Disabled . | . . . Max in Single Turn . | . . . Machines Sabotaged . | . . . Garrisons Compromised . | . . . Overloaded Fab Kills . | . . . Fab Network Shutdowns . | . . . Hacking | -11 -10 -10 --------- Run | Scr Mat Min Machines Accessed 3 | . 3 . Terminals 3 | . 3 . Fabricators . | . . . Repair Stations . | . . . Recycling Units . | . . . Scanalyzers . | . . . Garrison Access . | . . . Total Hacks 8 | . 8 . Successful 3 | . 3 . Failed 5 | . 5 . Catastrophic . | . . . Database Lockouts . | . . . Manual 8 | . 8 . Terminals 8 | . 8 . Fabricators . | . . . Repair Stations . | . . . Recycling Units . | . . . Scanalyzers . | . . . Garrison Access . | . . . Terminal Hacks 1 | . 1 . Locate Traps 1 | . 1 . Fabricator Hacks . | . . . Repair Station Hacks . | . . . Recycling Unit Hacks . | . . . Scanalyzer . | . . . Garrison Access Hacks . | . . . Unauthorized Hacks 2 | . 2 . Terminals 2 | . 2 . Botnet 2 | . 2 . Fabricators . | . . . Repair Stations . | . . . Recycling Units . | . . . Scanalyzers . | . . . Garrison Access . | . . . Data Cores Recovered . | . . . Used . | . . . Hacking Detections 3 | . 3 . Full Trace Events . | . . . Feedback Events . | . . . Feedback Blocked . | . . . Robot Schematics Acquired . | . . . Robots Built . | . . . Matter . | . . . Time . | . . . Total Robot Build Rating . | . . . Part Schematics Acquired . | . . . Parts Built . | . . . Matter . | . . . Time . | . . . Total Part Build Rating . | . . . Parts Repaired . | . . . Time . | . . . Parts Recycled . | . . . Recycled Matter . | . . . Retrieved Matter . | . . . Retrieved Components . | . . . Parts Scanalyzed . | . . . Part Schematics Acquired . | . . . Parts Damaged . | . . . Bothacking | -11 -10 -10 ------------ Run | Scr Mat Min Used RIF Installer . | . . . Robots Hacked . | . . . Non-combat . | . . . Combat . | . . . Robot Hacks Applied . | . . . Relay Couplers Released . | . . . Robots Rewired . | . . . Allies Hacked . | . . . Hacks Repelled . | . . . Allies | -11 -10 -10 -------- Run | Scr Mat Min Total Allies . | . . . Largest Group . | . . . Highest-Rated Group . | . . . Highest-Rated Ally . | . . . Total Orders . | . . . Ally Attacks . | . . . Total Damage . | . . . Kills . | . . . Allies Corrupted . | . . . Allies Melted . | . . . Intel | -11 -10 -10 ------- Run | Scr Mat Min Robot Analysis Total . | . . . Derelict Logs Recovered . | . . . Drone Launches . | . . . Drone Recoveries . | . . . Exploration | -11 -10 -10 ------------- Run | Scr Mat Min Turns Passed 1591 | . 1213 378 Spaces Moved 833 | 1 640 192 Core . | . . . Treads . | . . . Legs 833 | 1 640 192 Wheels . | . . . Hover . | . . . Flight . | . . . Fastest Speed 120 | 120 120 180 Average Speed 174 | 120 173 180 Slowest Speed 180 | 120 180 180 Overloaded Moves . | . . . Propulsion Burnouts . | . . . Robots Hopped . | . . . Cave-ins Triggered . | . . . Exploration Rate (%) 51 | 2 95 57 Regions Visited 2 Branch Regions 1 Pre-discovered Areas . | . . . Known Exits Taken . | . . . Unknown Exits Taken 2 | 1 1 . Scrap Searched . | . . . Spaces Dug 18 | . 10 8 Terrain Destroyed 74 | . 23 51 Melee . | . . . Projectile . | . . . AOE 74 | . 23 51 Terrain Rammed . | . . . Walls Destroyed . | . . . Machines Disabled . | . . . Actions | -11 -10 -10 --------- Run | Scr Mat Min Total 904 | . 693 211 Wait 5 | . 5 . Move 831 | . 639 192 Hop . | . . . Pick Up 13 | . 12 1 Fast Attach . | . . . Attach 7 | . 2 5 Detach . | . . . Swap 6 | . 5 1 Drop 4 | . 4 . Fire 37 | . 26 11 Melee . | . . . Ram . | . . . Kick 1 | . . 1 Crush . | . . . Escape Stasis . | . . . Rewire . | . . . Trap . | . . . Miscellaneous . | . . . Route ------- -11/Scrapyard -10/Materials (discovered 4 exits: [*Mat x3] / [*Min]) -10/Mines (discovered 1 exit: [*Mat]) History --------- Turn | Location | Event 1 | -11/Scrapyard | Discovered new exit (range 0) 1 | -11/Scrapyard | Entered Materials 313 | -10/Materials | Build established: Mutant 323 | -10/Materials | Discovered new exit (range 11) 421 | -10/Materials | Discovered new exit (range 7) 620 | -10/Materials | Discovered new exit (range 15) 791 | -10/Materials | Discovered new exit (range 16) 1214 | -10/Materials | Entered Mines 1220 | -10/Mines | Discovered new exit (range 10) 1513 | -10/Mines | Received a Rocket Launcher from a helpful Derelict 1530 | -10/Mines | Assembled infested the area 1535 | -10/Mines | Assisted by a Guerilla fighting off Assembled 1588 | -10/Mines | Core integrity fell below 50% 1590 | -10/Mines | Core integrity fell below 20% 1592 | -10/Mines | Destroyed by as-59159 with Assembled Heavy Rifle Last Messages --------------- 01550_ Slammed into as-88035. 01562_ as-72775 destroyed. 01566_ as-74141 destroyed. 01570_ as-42986 destroyed. 01572_ as-24569 destroyed. 01576_ Aluminum Leg destroyed. 01578_ Ion Engine destroyed. 01580_ Destroyed Asb. Heavy Rifle. 01580_ Destroyed Unknown Hover Unit. 01580_ as-27313 destroyed. 01582_ The unstable cave ceiling collapses. 01582_ Aluminum Leg destroyed. 01582_ as-52210 destroyed. 01583_ The unstable cave ceiling collapses. 01584_ as-62317 destroyed. 01585_ The unstable cave ceiling collapses. 01588_ Grenade Launcher destroyed. 01589_ Lgt. Treads severed. 01591_ System corrupted: Lgt. EM Pulse Cannon targeting data glitched. 01591_ as-68548 destroyed. Map ----- +----------------------------------------------------+ | ##??????????###??????# ##????????????????????? | | #?????????????????## #????????????????????? | | ##????????????????# ##???????????????????? | | #????????####????# #???????????????????? | | "" #???????## ###?##% ##??????????????????? | | "" ##??????# ### #??????????????????? | | "" ##?????# #??????????????????? | | ##????# ## #???????????????????? | | ##???# #### ##???????????????????? | | # ##??# #??## ##????????????????????? | | ## #### ##??## ;##?????????????????????? | | ?## < ## #???## #??????????????????????? | | ??#### #???? =%* ??????????????????????? | | ?????# ##???? %* ##????????????????????? | | ?????# ### #?????# % ####??#??????????????? | | ?????# #?## ##????? = #? ##?????????????? | | ?????# #??# ##???? * ## a??????????????? | | ?????# #??## ##?? #??????????????? | | ####?# #? #?? ####????????????? | | ### # #??#*% % ## ??????????? | | #### ##??## a # #??????????? | | #???# ##???? a # #????????? | | #####???? ##????? a ??????? | | ##??????? #??????# a ??????? | | #??????? #?????## % #??????????? | | ? #?????# @ #???????????? | | ### #? #?????# #??????????????? | | ##?#### ####??#?????# #####??????????????? | | ##??????? #???????????########??????????????????? | | ?????????? #?????????????????????????????????????? | | ??????????##?????????????????????????????????????? | | ?????????????????????????????????????????????????? | | ?????????????????????????????????????????????????? | | ?????????????????????????????????????????????????? | | ?????????????????????????????????????????????????? | | ?????????????????????????????????????????????????? | | ?????????????????????????????????????????????????? | | ?????????????????????????????????????????????????? | | ?????????????????????????????????????????????????? | | ?????????????????????????????????????????????????? | | ?????????????????????????????????????????????????? | | ?????????????????????????????????????????????????? | | ?????????????????????????????????????????????????? | | ?????????????????????????????????????????????????? | | ?????????????????????????????????????????????????? | | | | | | | | | | | +----------------------------------------------------+ Best States ------------- Heat Dissipation 25 Energy Generation 10 Energy Capacity 250 Matter Stores 300 Matter Capacity 300 Sight Range 16 Terrain Scan Density 10 Evasion (%) 40 Recoil Reduction 1 Item Schematics ----------------- None Robot Schematics ------------------ None Fabricated ------------ Nothing Alien Tech Used ----------------- None Achievements -------------- None Challenges ------------ None Game ------ Seed PhasingTerrainPit Manual? 0 Play Time 00:08:15 Cumulative 116.3 hours Start 2020.11.30 @ 12:31:13 End 2020.11.30 @ 12:37:42 Sessions 1 Manual Loads 0 Difficulty Rogue Special Mode Halloween2020/ForbiddenLore Game No. 124 Rogue 117 Adventurer 0 Explorer 7 Win Type - Total 1 Types 0/0/1/0/0/0/0/0/0 Lore% 55 Gallery% 82 Achievement% 64 Wizard Run 0 Options --------- ASCII 0 Keyboard 0 Movement Mouse Keybinds 0 Fullscreen 1 Font 18/X11 Map View 76x50 Tactical HUD 1 Map Filters NONE Filters NONE Steam 1 RUN: f8aba226-1676-4082-bf9c-da6ba5c9c5a1